lending/lending_fUSD_20241228
["ID","MTS","AMOUNT","RATE_DAILY","PERIOD"]
[346923764,1735386643143,-978.15,0.00011078,2]
[346923765,1735386643152,-182.72,0.00011078,2]
[346923766,1735386643162,-25795.0,0.00011091,2]
[346923767,1735386643172,-171.90945656,0.00011103,2]
[346923768,1735386643182,-250.0,0.00011121,2]
[346923769,1735386643191,-978.15,0.00011178,2]
[346923770,1735386643201,-182.72,0.00011178,2]
[346923771,1735386643211,-500.0,0.00011201,2]
[346923772,1735386643220,-500.0,0.00011201,2]
[346923773,1735386643230,-500.0,0.00011201,2]
[346923775,1735386643240,-500.0,0.00011201,2]
[346923776,1735386643250,-500.0,0.00011201,2]
[346923778,1735386643259,-477.6,0.00011201,2]
[346923780,1735386643268,-500.0,0.00011202,2]
[346923782,1735386643277,-571.71,0.00011202,2]
[346923784,1735386643287,-500.0,0.00011202,2]
[346923786,1735386643296,-1078.96,0.00011202,2]
[346923788,1735386643305,-500.0,0.00011202,2]
[346923790,1735386643314,-500.0,0.00011202,2]
[346923791,1735386643324,-171.40057933,0.00011202,2]
[346923792,1735386643333,-513.21,0.00011202,2]
[346923793,1735386643343,-411.119417,0.00011202,2]
[346923794,1735386643352,-501.43019685,0.00011202,2]
[346923795,1735386643362,-501.62087577,0.00011202,2]
[346923796,1735386643371,-500.0,0.00011202,2]
[346923797,1735386643380,-500.0,0.00011202,2]
[346923798,1735386643390,-500.0,0.00011202,2]
[346923802,1735386643400,-500.82497432,0.00011202,2]
[346923804,1735386643409,-373.487372,0.00011202,2]
[346923805,1735386643419,-501.31360385,0.00011202,2]
[346923807,1735386643429,-568.2,0.00011202,2]
[346923809,1735386643438,-500.0,0.00011202,2]
[346923811,1735386643448,-906.79,0.00011202,2]
[346923814,1735386643461,-501.90822135,0.00011202,2]
[346923816,1735386643470,-500.0,0.00011202,2]
[346923818,1735386643480,-500.0,0.00011202,2]
[346923819,1735386643490,-1345.47,0.00011202,2]
[346923820,1735386643499,-500.0,0.00011202,2]
[346923821,1735386643510,-586.73515147,0.00011202,2]
[346923822,1735386643521,-223.44996433,0.00011202,2]
[346923823,1735386643530,-500.0,0.00011202,2]
[346923824,1735386643540,-500.0,0.00011202,2]
[346923825,1735386643550,-500.70189406,0.00011202,2]
[346923826,1735386643559,-501.17710667,0.00011202,2]
[346923827,1735386643569,-941.66,0.00011202,2]
[346923828,1735386643578,-500.0,0.00011202,2]
[346923829,1735386643588,-714.51,0.00011202,2]
[346923830,1735386643598,-293.28,0.00011202,2]
[346923831,1735386643608,-500.0,0.00011202,2]
[346923832,1735386643617,-562.68,0.00011202,2]
[346923833,1735386643627,-501.41483009,0.00011202,2]
[346923834,1735386643636,-521.0,0.00011202,2]
[346923835,1735386643646,-510.17827972,0.00011202,2]
[346923836,1735386643655,-501.09411859,0.00011202,2]
[346923837,1735386643665,-500.0,0.00011202,2]
[346923838,1735386643675,-500.0,0.00011202,2]
[346923839,1735386643685,-1500.4,0.00011202,2]
[346923840,1735386643695,-500.0,0.00011202,2]
[346923841,1735386643709,-868.27,0.00011202,2]
[346923842,1735386643719,-2706.37,0.00011202,2]
[346923843,1735386643729,-1016.01,0.00011202,2]
[346923844,1735386643738,-500.0,0.00011202,2]
[346923845,1735386643749,-849.58,0.00011202,2]
[346923846,1735386643760,-154.47488932,0.00011202,2]
[346923847,1735386643769,-500.0,0.00011202,2]
[346923848,1735386643780,-508.09677506,0.00011202,2]
[346923849,1735386643790,-666.6,0.00011202,2]
[346923850,1735386643800,-2881.14,0.00011202,2]
[346923851,1735386643810,-500.0,0.00011202,2]
[346923852,1735386643820,-500.0,0.00011202,2]
[346923853,1735386643829,-500.0,0.00011202,2]
[346923854,1735386643839,-3805.38,0.00011202,2]
[346923855,1735386643850,-500.0,0.00011202,2]
[346923856,1735386643859,-664.31,0.00011202,2]
[346923857,1735386643870,-674.47,0.00011202,2]
[346923858,1735386643880,-1562.99,0.00011202,2]
[346923859,1735386643890,-500.0,0.00011202,2]
[346923860,1735386643900,-514.38,0.00011202,2]
[346923861,1735386643910,-500.0,0.00011202,2]
[346923862,1735386643922,-691.65,0.00011202,2]
[346923863,1735386643933,-500.0,0.00011202,2]
[346923864,1735386643942,-3819.34,0.00011202,2]
[346923865,1735386643952,-451.44,0.00011202,2]
[346923866,1735386643962,-276.79,0.00011202,2]
[346923867,1735386643972,-715.98,0.00011202,2]
[346923868,1735386643982,-638.06522838,0.00011202,2]
[346923869,1735386643992,-500.0,0.00011202,2]
[346923870,1735386644002,-500.0,0.00011203,2]
[346923871,1735386644012,-500.0,0.00011203,2]
[346923872,1735386644022,-500.0,0.00011203,2]
[346923873,1735386644032,-500.0,0.00011203,2]
[346923874,1735386644043,-500.0,0.00011203,2]
[346923875,1735386644052,-500.0,0.00011203,2]
[346923876,1735386644062,-500.0,0.00011203,2]
[346923877,1735386644072,-523.32,0.00011203,2]
[346923878,1735386644083,-500.0,0.00011203,2]
[346923879,1735386644094,-500.0,0.00011203,2]
[346923880,1735386644104,-500.0,0.00011203,2]
[346923881,1735386644114,-500.0,0.00011203,2]
[346923882,1735386644127,-661.74,0.00011203,2]
[346923883,1735386644137,-500.0,0.00011203,2]
[346923884,1735386644146,-500.0,0.00011203,2]
[346923885,1735386644156,-500.0,0.00011203,2]
[346923886,1735386644166,-396.57090645,0.00011203,2]
[346923887,1735386644175,-500.0,0.00011203,2]
[346923888,1735386644185,-500.0,0.00011203,2]
[346923889,1735386644194,-500.0,0.00011203,2]
[346923890,1735386644204,-500.0,0.00011203,2]
[346923891,1735386644214,-500.0,0.00011203,2]
[346923892,1735386644223,-505.7533947,0.00011203,2]
[346923893,1735386644233,-500.0,0.00011203,2]
[346923894,1735386644242,-169.83258022,0.00011203,2]
[346923895,1735386644252,-500.0,0.00011203,2]
[346923896,1735386644261,-653.98,0.00011203,2]
[346923897,1735386644271,-500.0,0.00011203,2]
[346923898,1735386644282,-500.0,0.00011203,2]
[346923899,1735386644291,-500.0,0.00011203,2]
[346923900,1735386644301,-500.0,0.00011203,2]
[346923901,1735386644311,-500.0,0.00011203,2]
[346923902,1735386644320,-500.0,0.00011203,2]
[346923903,1735386644330,-500.0,0.00011203,2]
[346923904,1735386644340,-500.0,0.00011203,2]
[346923905,1735386644350,-500.0,0.00011203,2]
[346923906,1735386644360,-500.0,0.00011203,2]
[346923907,1735386644370,-634.73,0.00011203,2]
[346923908,1735386644380,-500.0,0.00011203,2]
[346923909,1735386644390,-506.11433296,0.00011203,2]
[346923910,1735386644399,-500.0,0.00011203,2]
[346923911,1735386644409,-564.98,0.00011203,2]
[346923912,1735386644419,-500.0,0.00011203,2]
[346923913,1735386644429,-500.0,0.00011203,2]
[346923914,1735386644439,-506.88720771,0.00011203,2]
[346923915,1735386644449,-498.1252548,0.00011203,2]
[346923916,1735386644458,-500.0,0.00011203,2]
[346923917,1735386644468,-500.0,0.00011203,2]
[346923918,1735386644478,-500.0,0.00011203,2]
[346923919,1735386644488,-647.94,0.00011203,2]
[346923920,1735386644498,-505.23198859,0.00011203,2]
[346923921,1735386644509,-500.0,0.00011203,2]
[346923922,1735386644518,-500.0,0.00011203,2]
[346923923,1735386644528,-500.0,0.00011203,2]
[346923924,1735386644537,-500.0,0.00011203,2]
[346923925,1735386644547,-500.0,0.00011203,2]
[346923926,1735386644556,-1905.11,0.00011203,2]
[346923927,1735386644566,-500.0,0.00011203,2]
[346923928,1735386644576,-500.0,0.00011203,2]
[346923929,1735386644585,-500.0,0.00011203,2]
[346923930,1735386644595,-500.0,0.00011203,2]
[346923931,1735386644604,-500.0,0.00011203,2]
[346923932,1735386644614,-577.68,0.00011203,2]
[346923933,1735386644623,-500.0,0.00011203,2]
[346923934,1735386644633,-500.0,0.00011203,2]
[346923935,1735386644642,-500.0,0.00011203,2]
[346923936,1735386644652,-500.0,0.00011203,2]
[346923937,1735386644662,-512.08004968,0.00011203,2]
[346923938,1735386644672,-592.21,0.00011203,2]
[346923939,1735386644682,-500.0,0.00011203,2]
[346923940,1735386644692,-500.0,0.00011203,2]
[346923941,1735386644706,-500.0,0.00011203,2]
[346923942,1735386644715,-562.67530144,0.00011203,2]
[346923943,1735386644725,-500.0,0.00011203,2]
[346923944,1735386644735,-719.18,0.00011203,2]
[346923945,1735386644745,-500.0,0.00011203,2]
[346923946,1735386644755,-500.0,0.00011203,2]
[346923947,1735386644765,-500.0,0.00011203,2]
[346923948,1735386644775,-500.0,0.00011203,2]
[346923949,1735386644784,-500.0,0.00011203,2]
[346923950,1735386644794,-500.0,0.00011203,2]
[346923951,1735386644808,-500.0,0.00011203,2]
[346923952,1735386644818,-500.0,0.00011203,2]
[346923953,1735386644827,-500.0,0.00011203,2]
[346923954,1735386644837,-674.16,0.00011203,2]
[346923955,1735386644846,-500.0,0.00011203,2]
[346923956,1735386644856,-650.77,0.00011203,2]
[346923957,1735386644865,-500.0,0.00011203,2]
[346923958,1735386644876,-798.0,0.00011203,2]
[346923959,1735386644886,-500.0,0.00011203,2]
[346923960,1735386644895,-500.0,0.00011203,2]
[346923961,1735386644905,-500.0,0.00011203,2]
[346923962,1735386644915,-500.0,0.00011203,2]
[346923963,1735386644925,-579.25,0.00011203,2]
[346923964,1735386644936,-500.0,0.00011203,2]
[346923965,1735386644946,-500.0,0.00011203,2]
[346923966,1735386644956,-500.0,0.00011203,2]
[346923967,1735386644965,-200.0,0.00011238,2]
[346923968,1735386644975,-150.0,0.00011249,2]
[346923969,1735386644985,-182.72,0.00011256,2]
[346923970,1735386644994,-978.15,0.00011256,2]
[346923971,1735386645003,-182.72,0.00011256,2]
[346923972,1735386645013,-978.15,0.00011256,2]
[346923973,1735386645023,-978.15,0.00011356,2]
[346923974,1735386645032,-182.72,0.00011356,2]
[346923975,1735386645042,-436.21,0.00011356,2]
[346923976,1735386645051,-150.0,0.00011362,2]
[346923977,1735386645061,-150.0,0.00011419,2]
[346923978,1735386645070,-150.0,0.00011429,2]
[346923979,1735386645080,-150.0,0.00011456,2]
[346923980,1735386645089,-150.0,0.00011463,2]
[346923981,1735386645099,-500.0,0.00011475,2]
[346923982,1735386645109,-519.30858262,0.00011475,2]
[346923983,1735386645119,-500.0,0.00011475,2]
[346923984,1735386645128,-500.0,0.00011475,2]
[346923985,1735386645138,-500.0,0.00011475,2]
[346923986,1735386645147,-500.0,0.00011476,2]
[346923987,1735386645157,-500.0,0.00011476,2]
[346923988,1735386645166,-500.0,0.00011476,2]
[346923989,1735386645175,-343.63049061,0.00011476,2]
[346923990,1735386645184,-500.0,0.00011476,2]
[346923991,1735386645193,-582.92177315,0.00011476,2]
[346923992,1735386645203,-500.0,0.00011476,2]
[346923993,1735386645213,-373.18315107,0.00011476,2]
[346923994,1735386645222,-500.0,0.00011476,2]
[346923995,1735386645232,-500.0,0.00011476,2]
[346923996,1735386645241,-500.0,0.00011476,2]
[346923997,1735386645251,-500.0,0.00011476,2]
[346923998,1735386645261,-578.6717069,0.00011476,2]
[346923999,1735386645271,-500.0,0.00011476,2]
[346924000,1735386645280,-245.92589828,0.00011476,2]
[346924001,1735386645289,-500.0,0.00011476,2]
[346924002,1735386645299,-454.85248193,0.00011476,2]
[346924003,1735386645308,-500.0,0.00011476,2]
[346924004,1735386645318,-500.0,0.00011476,2]
[346924005,1735386645327,-500.0,0.00011476,2]
[346924006,1735386645337,-500.0,0.00011476,2]
[346924007,1735386645346,-500.0,0.00011476,2]
[346924008,1735386645355,-500.0,0.00011476,2]
[346924009,1735386645365,-500.0,0.00011476,2]
[346924010,1735386645374,-500.0,0.00011476,2]
[346924011,1735386645384,-505.32734655,0.00011476,2]
[346924012,1735386645394,-422.84489918,0.00011476,2]
[346924013,1735386645403,-500.0,0.00011476,2]
[346924014,1735386645413,-500.0,0.00011476,2]
[346924015,1735386645423,-500.0,0.00011476,2]
[346924016,1735386645432,-507.0176755,0.00011476,2]
[346924017,1735386645442,-500.0,0.00011476,2]
[346924018,1735386645452,-500.0,0.00011476,2]
[346924019,1735386645461,-500.0,0.00011476,2]
[346924020,1735386645471,-500.0,0.00011476,2]
[346924021,1735386645481,-500.0,0.00011476,2]
[346924022,1735386645491,-500.0,0.00011476,2]
[346924023,1735386645501,-500.0,0.00011476,2]
[346924024,1735386645511,-500.0,0.00011476,2]
[346924025,1735386645521,-500.0,0.00011476,2]
[346924026,1735386645531,-500.0,0.00011476,2]
[346924027,1735386645540,-500.0,0.00011476,2]
[346924028,1735386645550,-571.71,0.00011476,2]
[346924029,1735386645559,-500.0,0.00011476,2]
[346924030,1735386645569,-500.0,0.00011476,2]
[346924031,1735386645579,-440.72438751,0.00011476,2]
[346924032,1735386645588,-500.0,0.00011476,2]
[346924033,1735386645598,-500.0,0.00011476,2]
[346924034,1735386645607,-500.0,0.00011476,2]
[346924035,1735386645617,-540.07283018,0.00011476,2]
[346924036,1735386645626,-500.0,0.00011476,2]
[346924037,1735386645635,-1078.96,0.00011476,2]
[346924038,1735386645645,-500.0,0.00011476,2]
[346924039,1735386645654,-500.0,0.00011476,2]
[346924040,1735386645665,-500.0,0.00011476,2]
[346924041,1735386645675,-500.0,0.00011476,2]
[346924042,1735386645684,-500.0,0.00011476,2]
[346924043,1735386645694,-500.0,0.00011476,2]
[346924044,1735386645708,-500.0,0.00011476,2]
[346924045,1735386645717,-500.0,0.00011476,2]
[346924046,1735386645727,-500.0,0.00011476,2]
[346924047,1735386645736,-411.119417,0.00011476,2]
[346924048,1735386645746,-500.0,0.00011476,2]
[346924049,1735386645756,-500.0,0.00011476,2]
[346924050,1735386645766,-500.0,0.00011476,2]
[346924051,1735386645776,-500.0,0.00011476,2]
[346924053,1735386645785,-428.6,0.00011476,2]
[346924055,1735386645795,-373.487372,0.00011476,2]
[346924056,1735386645803,-500.0,0.00011476,2]
[346924057,1735386645813,-500.0,0.00011476,2]
[346924058,1735386645823,-500.0,0.00011476,2]
[346924060,1735386645832,-500.0,0.00011476,2]
[346924061,1735386645842,-906.79,0.00011476,2]
[346924063,1735386645852,-500.0,0.00011476,2]
[346924065,1735386645862,-500.0,0.00011476,2]
[346924067,1735386645871,-500.0,0.00011476,2]
[346924069,1735386645880,-1345.47,0.00011476,2]
[346924071,1735386645890,-167.26736745,0.00011476,2]
[346924073,1735386645900,-500.0,0.00011476,2]
[346924075,1735386645910,-500.0,0.00011476,2]
[346924077,1735386645919,-500.0,0.00011476,2]
[346924078,1735386645928,-500.0,0.00011476,2]
[346924080,1735386645938,-500.0,0.00011476,2]
[346924082,1735386645947,-500.0,0.00011476,2]
[346924083,1735386645956,-500.0,0.00011476,2]
[346924084,1735386645966,-500.0,0.00011476,2]
[346924085,1735386645975,-941.66,0.00011476,2]
[346924086,1735386645984,-500.0,0.00011476,2]
[346924087,1735386645994,-500.0,0.00011476,2]
[346924088,1735386646004,-500.0,0.00011476,2]
[346924089,1735386646013,-500.0,0.00011476,2]
[346924090,1735386646023,-714.51,0.00011476,2]
[346924091,1735386646033,-500.0,0.00011476,2]
[346924092,1735386646043,-500.0,0.00011476,2]
[346924093,1735386646052,-500.0,0.00011476,2]
[346924094,1735386646062,-562.68,0.00011476,2]
[346924095,1735386646071,-500.0,0.00011476,2]
[346924096,1735386646081,-500.0,0.00011476,2]
[346924097,1735386646091,-500.0,0.00011476,2]
[346924098,1735386646102,-1954.9,0.00011476,2]
[346924099,1735386646111,-521.0,0.00011476,2]
[346924100,1735386646121,-500.0,0.00011476,2]
[346924101,1735386646131,-500.0,0.00011476,2]
[346924102,1735386646141,-500.0,0.00011476,2]
[346924103,1735386646151,-500.0,0.00011476,2]
[346924104,1735386646160,-500.0,0.00011476,2]
[346924105,1735386646170,-500.0,0.00011476,2]
[346924106,1735386646179,-1500.4,0.00011476,2]
[346924107,1735386646189,-500.0,0.00011476,2]
[346924108,1735386646198,-500.0,0.00011476,2]
[346924109,1735386646210,-500.0,0.00011476,2]
[346924110,1735386646220,-500.0,0.00011476,2]
[346924111,1735386646229,-868.27,0.00011476,2]
[346924112,1735386646239,-500.0,0.00011476,2]
[346924113,1735386646248,-500.0,0.00011476,2]
[346924114,1735386646259,-2706.37,0.00011476,2]
[346924115,1735386646268,-1016.01,0.00011476,2]
[346924117,1735386646278,-500.0,0.00011476,2]
[346924118,1735386646288,-507.19098928,0.00011476,2]
[346924119,1735386646297,-500.0,0.00011476,2]
[346924120,1735386646306,-500.0,0.00011476,2]
[346924121,1735386646315,-500.0,0.00011476,2]
[346924122,1735386646324,-500.0,0.00011476,2]
[346924123,1735386646333,-849.58,0.00011476,2]
[346924124,1735386646343,-500.0,0.00011476,2]
[346924125,1735386646352,-500.0,0.00011476,2]
[346924126,1735386646361,-503.16705958,0.00011476,2]
[346924127,1735386646371,-666.6,0.00011476,2]
[346924129,1735386646380,-500.0,0.00011476,2]
[346924131,1735386646390,-500.0,0.00011476,2]
[346924133,1735386646399,-2881.14,0.00011476,2]
[346924135,1735386646409,-500.0,0.00011476,2]
[346924137,1735386646418,-500.0,0.00011476,2]
[346924139,1735386646427,-500.0,0.00011476,2]
[346924141,1735386646437,-500.0,0.00011476,2]
[346924143,1735386646446,-3805.38,0.00011476,2]
[346924145,1735386646456,-500.0,0.00011476,2]
[346924147,1735386646466,-500.0,0.00011476,2]
[346924149,1735386646475,-500.0,0.00011476,2]
[346924151,1735386646484,-500.0,0.00011476,2]
[346924153,1735386646494,-664.31,0.00011476,2]
[346924155,1735386646503,-674.47,0.00011476,2]
[346924157,1735386646514,-500.0,0.00011476,2]
[346924158,1735386646523,-500.0,0.00011476,2]
[346924161,1735386646533,-1562.99,0.00011476,2]
[346924163,1735386646542,-500.0,0.00011476,2]
[346924164,1735386646552,-500.0,0.00011476,2]
[346924166,1735386646561,-500.0,0.00011476,2]
[346924168,1735386646571,-514.38,0.00011476,2]
[346924169,1735386646782,-500.0,0.00011476,2]
[346924170,1735386646794,-500.0,0.00011476,2]
[346924171,1735386646803,-691.65,0.00011476,2]
[346924172,1735386646813,-1200.88,0.00011476,2]
[346924173,1735386646823,-500.0,0.00011476,2]
[346924174,1735386646832,-546.99,0.00011476,2]
[346924175,1735386646841,-3819.34,0.00011476,2]
[346924176,1735386646850,-523.73,0.00011476,2]
[346924177,1735386646860,-715.98,0.00011476,2]
[346924178,1735386646870,-1520.92,0.00011476,2]
[346924179,1735386646879,-500.0,0.00011476,2]
[346924180,1735386646888,-500.0,0.00011476,2]
[346924181,1735386646897,-500.0,0.00011476,2]
[346924182,1735386646907,-500.0,0.00011476,2]
[346924183,1735386646916,-500.0,0.00011477,2]
[346924184,1735386646926,-500.0,0.00011477,2]
[346924185,1735386646935,-500.0,0.00011477,2]
[346924186,1735386646945,-500.0,0.00011477,2]
[346924187,1735386646954,-564.9,0.00011477,2]
[346924188,1735386646963,-500.0,0.00011477,2]
[346924189,1735386646973,-500.0,0.00011477,2]
[346924190,1735386646982,-500.0,0.00011477,2]
[346924191,1735386646991,-500.0,0.00011477,2]
[346924192,1735386647001,-500.0,0.00011477,2]
[346924193,1735386647010,-500.0,0.00011477,2]
[346924194,1735386647019,-661.74,0.00011477,2]
[346924195,1735386647029,-500.0,0.00011477,2]
[346924196,1735386647038,-500.0,0.00011477,2]
[346924197,1735386647048,-500.0,0.00011477,2]
[346924198,1735386647058,-500.0,0.00011477,2]
[346924199,1735386647067,-500.0,0.00011477,2]
[346924200,1735386647076,-500.0,0.00011477,2]
[346924201,1735386647085,-500.0,0.00011477,2]
[346924202,1735386647095,-500.0,0.00011477,2]
[346924203,1735386647105,-500.0,0.00011477,2]
[346924204,1735386647114,-500.0,0.00011477,2]
[346924205,1735386647123,-653.98,0.00011477,2]
[346924206,1735386647133,-500.0,0.00011477,2]
[346924207,1735386647142,-500.0,0.00011477,2]
[346924208,1735386647152,-500.0,0.00011477,2]
[346924209,1735386647161,-500.0,0.00011477,2]
[346924210,1735386647171,-500.0,0.00011477,2]
[346924211,1735386647180,-503.58750878,0.00011477,2]
[346924212,1735386647189,-500.0,0.00011477,2]
[346924213,1735386647198,-500.0,0.00011477,2]
[346924214,1735386647207,-504.84329524,0.00011477,2]
[346924215,1735386647217,-500.0,0.00011477,2]
[346924216,1735386647228,-634.73,0.00011477,2]
[346924217,1735386647238,-500.0,0.00011477,2]
[346924218,1735386647248,-500.0,0.00011477,2]
[346924219,1735386647257,-564.98,0.00011477,2]
[346924220,1735386647267,-500.0,0.00011477,2]
[346924221,1735386647278,-500.0,0.00011477,2]
[346924222,1735386647287,-500.0,0.00011477,2]
[346924223,1735386647296,-500.0,0.00011477,2]
[346924224,1735386647305,-500.0,0.00011477,2]
[346924225,1735386647315,-647.94,0.00011477,2]
[346924226,1735386647325,-500.0,0.00011477,2]
[346924227,1735386647334,-500.0,0.00011477,2]
[346924228,1735386647343,-500.0,0.00011477,2]
[346924229,1735386647353,-500.0,0.00011477,2]
[346924230,1735386647362,-500.0,0.00011477,2]
[346924231,1735386647371,-1905.11,0.00011477,2]
[346924232,1735386647380,-500.0,0.00011477,2]
[346924233,1735386647390,-500.0,0.00011477,2]
[346924234,1735386647399,-500.0,0.00011477,2]
[346924235,1735386647409,-500.0,0.00011477,2]
[346924236,1735386647418,-500.0,0.00011477,2]
[346924237,1735386647435,-577.68,0.00011477,2]
[346924238,1735386647449,-500.0,0.00011477,2]
[346924239,1735386647459,-500.0,0.00011477,2]
[346924240,1735386647469,-500.0,0.00011477,2]
[346924241,1735386647480,-500.0,0.00011477,2]
[346924242,1735386647491,-592.21,0.00011477,2]
[346924243,1735386647501,-500.0,0.00011477,2]
[346924244,1735386647511,-500.0,0.00011477,2]
[346924245,1735386647521,-500.0,0.00011477,2]
[346924246,1735386647531,-500.0,0.00011477,2]
[346924247,1735386647541,-719.18,0.00011477,2]
[346924248,1735386647553,-500.0,0.00011477,2]
[346924249,1735386647564,-500.0,0.00011477,2]
[346924250,1735386647575,-500.0,0.00011477,2]
[346924251,1735386647585,-500.0,0.00011477,2]
[346924252,1735386647595,-500.0,0.00011477,2]
[346924253,1735386647607,-500.0,0.00011477,2]
[346924254,1735386647616,-500.0,0.00011477,2]
[346924255,1735386647628,-500.0,0.00011477,2]
[346924256,1735386647638,-500.0,0.00011477,2]
[346924257,1735386647648,-674.16,0.00011477,2]
[346924258,1735386647658,-500.0,0.00011477,2]
[346924259,1735386647667,-650.77,0.00011477,2]
[346924260,1735386647677,-500.0,0.00011477,2]
[346924261,1735386647687,-798.0,0.00011477,2]
[346924262,1735386647701,-500.0,0.00011477,2]
[346924263,1735386647711,-500.0,0.00011477,2]
[346924264,1735386647720,-500.0,0.00011477,2]
[346924265,1735386647730,-500.0,0.00011477,2]
[346924266,1735386647740,-579.25,0.00011477,2]
[346924267,1735386647750,-500.0,0.00011477,2]
[346924268,1735386647760,-500.0,0.00011477,2]
[346924269,1735386647770,-500.0,0.00011477,2]
[346924270,1735386647780,-150.0,0.00011485,2]
[346924271,1735386647791,-150.0,0.00011488,2]
[346924272,1735386647800,-150.0,0.00011514,2]
[346924273,1735386647810,-150.0,0.00011548,2]
[346924274,1735386647820,-150.0,0.00011611,2]
[346924275,1735386647830,-150.0,0.00011638,2]
[346924276,1735386647839,-150.0,0.00011678,2]
[346924277,1735386647849,-150.0,0.00011692,2]
[346924278,1735386647859,-150.0,0.00011701,2]
[346924279,1735386647870,-150.0,0.0001174,2]
[346924280,1735386647879,-150.0,0.00011744,2]
[346924281,1735386647889,-606.48,0.00011749,2]
[346924282,1735386647898,-500.0,0.00011749,2]
[346924283,1735386647908,-500.0,0.00011749,2]
[346924284,1735386647919,-500.0,0.00011749,2]
[346924285,1735386647928,-500.0,0.0001175,2]
[346924286,1735386647940,-500.0,0.0001175,2]
[346924287,1735386647950,-500.0,0.0001175,2]
[346924288,1735386647960,-500.0,0.0001175,2]
[346924289,1735386647971,-500.0,0.0001175,2]
[346924290,1735386647981,-500.0,0.0001175,2]
[346924291,1735386647990,-500.0,0.0001175,2]
[346924292,1735386648000,-402.69906003,0.0001175,2]
[346924293,1735386648010,-500.0,0.0001175,2]
[346924294,1735386648020,-500.0,0.0001175,2]
[346924295,1735386648029,-500.0,0.0001175,2]
[346924296,1735386648039,-445.1157478,0.0001175,2]
[346924297,1735386648049,-500.0,0.0001175,2]
[346924298,1735386648059,-500.0,0.0001175,2]
[346924299,1735386648068,-500.0,0.0001175,2]
[346924300,1735386648078,-500.0,0.0001175,2]
[346924301,1735386648087,-500.0,0.0001175,2]
[346924302,1735386648097,-500.0,0.0001175,2]
[346924303,1735386648107,-500.0,0.0001175,2]
[346924304,1735386648117,-500.0,0.0001175,2]
[346924305,1735386648127,-500.0,0.0001175,2]
[346924306,1735386648137,-500.0,0.0001175,2]
[346924307,1735386648147,-500.0,0.0001175,2]
[346924308,1735386648156,-500.0,0.0001175,2]
[346924309,1735386648166,-500.0,0.0001175,2]
[346924310,1735386648176,-500.0,0.0001175,2]
[346924311,1735386648185,-500.0,0.0001175,2]
[346924312,1735386648195,-500.0,0.0001175,2]
[346924313,1735386648205,-500.0,0.0001175,2]
[346924314,1735386648217,-500.0,0.0001175,2]
[346924315,1735386648227,-500.0,0.0001175,2]
[346924316,1735386648237,-500.0,0.0001175,2]